bitfinex/quotes_ETHUSD_20251119
["timestamp","ask_amount","ask_price","bid_price","bid_amount"]
[1763572263592,0.882604,2933.5,2932.1,0.3]
[1763572263803,0.1926,2933.6,2932.1,0.3]
[1763572263804,0.195,2932.5,2932.1,0.3]
[1763572264092,0.4771,2933.4,2932.1,0.3]
[1763572264299,0.4771,2933.4,2932.1,0.46]
[1763572264602,0.89472858,2934.6,2933.3,0.0966]
[1763572264900,0.4771,2935.6,2933.4,1.42838277]
[1763572265055,0.4771,2935.6,2933.9,0.90699264]
[1763572265261,0.197,2935.9,2933.9,0.90699264]
[1763572265556,0.002,2935.9,2934.5,0.405504]
[1763572265758,0.002,2935.9,2935.8,0.1234]
[1763572266187,0.002,2935.9,2935.8,0.6107]
[1763572266505,0.002,2936.2,2935.8,15.76181883]
[1763572266706,0.002,2936.5,2935.9,1.39429264]
[1763572266864,0.195,2938.0,2936.0,0.405504]
[1763572267063,0.4771,2938.3,2936.5,0.90699264]
[1763572267567,0.4771,2938.3,2936.6,0.5746]
[1763572267890,0.4771,2938.3,2936.6,0.0873]
[1763572268319,0.4771,2938.3,2935.8,0.1234]
[1763572268320,8.07149034,2938.1,2935.8,0.1234]
[1763572268455,8.07149034,2938.1,2935.4,0.4574]
[1763572268456,0.1987,2936.7,2935.5,0.1234]
[1763572270502,0.4518,2936.9,2935.6,0.4574]
[1763572270688,0.4518,2936.8,2935.5,0.1234]
[1763572271086,0.405504,2936.7,2935.1,0.4574]
[1763572271291,0.405504,2936.7,2935.0,0.1874]
[1763572271635,0.405504,2936.5,2935.0,0.1874]
[1763572271787,0.1987,2937.5,2935.6,0.405504]
[1763572271994,0.4518,2937.8,2935.7,1.31249664]
[1763572272230,0.4518,2937.8,2935.9,0.90699264]
[1763572272522,0.4518,2937.8,2936.0,0.4574]
[1763572273029,0.4518,2937.8,2935.7,0.90699264]
[1763572273232,0.405504,2937.7,2935.5,0.5808]
[1763572273526,0.92401273,2937.6,2935.5,0.5808]
[1763572273713,0.92401273,2937.6,2935.6,1.36439264]
[1763572273714,1.37581273,2937.6,2935.6,1.36439264]
[1763572273915,0.4518,2938.1,2936.2,1.31249664]
[1763572274099,0.4518,2938.1,2936.3,0.4574]
[1763572274297,0.1987,2938.0,2936.3,0.4574]
[1763572274828,0.4518,2937.9,2936.3,0.4574]
[1763572275188,0.4518,2937.9,2935.9,1.36439264]
[1763572275389,0.4518,2937.9,2936.0,1.38404735]
[1763572275689,0.4518,2937.9,2936.0,0.93445471]
[1763572275888,0.4518,2937.9,2936.1,0.4574]
[1763572276500,0.4518,2937.9,2936.2,0.90699264]
[1763572276700,0.4518,2937.9,2936.1,0.4574]
[1763572277112,0.405504,2937.8,2936.1,0.4574]
[1763572277313,0.405504,2937.8,2935.6,0.4574]
[1763572277589,0.405504,2937.6,2935.6,0.4574]
[1763572278015,1.35879264,2937.7,2935.6,0.4574]
[1763572278016,0.405504,2937.4,2935.6,0.4574]
[1763572278620,0.405504,2937.2,2935.6,0.4574]
[1763572278833,0.4518,2937.5,2935.7,0.03406342]
[1763572278997,0.6505,2938.0,2935.8,0.4574]
[1763572279333,0.6505,2938.0,2935.9,0.17396561]
[1763572279490,0.4518,2937.9,2935.9,0.17396561]
[1763572279692,0.405504,2937.8,2935.8,0.4574]
[1763572280233,0.4518,2937.9,2935.5,3.53094518]
[1763572280234,0.4518,2937.7,2935.5,0.1244]
[1763572280398,0.405504,2937.4,2935.5,0.1244]
[1763572280828,0.405504,2937.2,2935.5,0.1244]
[1763572281038,0.1987,2935.6,2935.5,0.001]
[1763572281223,0.1987,2935.6,2935.0,0.001]
[1763572281390,1.31249664,2935.3,2933.0,0.4574]
[1763572281742,1.31249664,2935.3,2932.1,8.37149034]
[1763572281743,0.9383987,2935.2,2933.1,0.03409362]
[1763572281886,0.405504,2935.1,2932.9,0.0986]
[1763572282090,0.405504,2934.9,2933.0,0.4574]
[1763572282290,0.405504,2934.9,2932.9,0.0986]
[1763572282541,0.4518,2934.8,2933.0,0.4574]
[1763572282909,0.4518,2934.8,2933.0,1.36439264]
[1763572283116,0.1987,2934.7,2933.1,0.4872532]
[1763572283333,0.1987,2934.7,2933.1,0.9446532]
[1763572283632,0.6505,2934.7,2933.1,0.9446532]
[1763572283790,0.6505,2934.7,2933.0,0.90699264]
[1763572283994,0.6505,2934.7,2933.2,0.4574]
[1763572284197,0.9383987,2935.2,2933.2,0.4574]
[1763572284198,0.1987,2935.1,2933.2,0.4574]
[1763572284420,0.1987,2935.1,2933.3,0.90699264]
[1763572284603,0.1987,2935.1,2933.4,0.47735481]
[1763572284805,0.6505,2935.1,2933.5,0.4574]
[1763572285203,0.1987,2935.1,2933.5,0.4574]
[1763572285407,0.4518,2935.0,2933.5,0.4574]
[1763572286170,0.4518,2935.0,2933.0,0.90699264]
[1763572286171,8.47699434,2934.9,2932.9,0.0986]
[1763572286344,8.47699434,2934.9,2932.6,0.1234]
[1763572286550,0.405504,2934.7,2932.6,0.1234]
[1763572286746,0.405504,2934.5,2932.6,0.1234]
[1763572287045,0.405504,2934.3,2932.6,0.1234]
[1763572287246,0.405504,2934.0,2932.2,0.1234]
[1763572287460,0.84769943,2933.9,2932.3,0.4766]
[1763572287651,8.07149034,2934.6,2932.3,0.4766]
[1763572287652,0.405504,2934.4,2932.3,0.4766]
[1763572287846,0.90699264,2934.5,2932.2,0.1234]
[1763572287847,0.405504,2934.2,2932.2,0.1234]
[1763572288047,0.4725,2934.3,2932.2,0.1234]
[1763572288248,0.90699264,2934.0,2932.2,0.1234]
[1763572288669,0.4725,2933.9,2932.2,0.1234]
[1763572289175,0.405504,2933.7,2932.2,0.1234]
[1763572289481,0.597004,2933.8,2932.2,0.1234]
[1763572289482,0.1915,2933.8,2932.2,0.1234]
[1763572289633,0.1915,2933.8,2932.5,0.4766]
[1763572289839,0.4725,2934.5,2932.5,1.38359264]
[1763572290062,6.91526889,2935.1,2932.5,1.38359264]
[1763572290063,0.4725,2935.0,2932.7,0.90699264]
[1763572290267,0.4725,2934.9,2932.8,0.4766]
[1763572290465,0.4725,2934.9,2933.0,0.90699264]
[1763572291063,0.4725,2934.9,2933.1,0.5752]
[1763572292878,0.4725,2934.9,2933.2,0.90699264]
[1763572293082,0.1987,2935.1,2933.3,0.48915396]
[1763572293278,0.4725,2935.4,2933.3,0.96575396]
[1763572293478,0.4725,2935.4,2933.4,0.03409013]
[1763572293640,0.4725,2935.4,2933.4,0.51069013]
[1763572293838,0.4725,2935.4,2933.4,0.4766]
[1763572294042,0.1987,2935.6,2933.5,0.43959297]
[1763572294284,0.1915,2935.9,2933.7,0.90699264]
[1763572294468,0.1915,2935.9,2933.8,0.68598467]
[1763572294669,0.664,2935.9,2934.0,0.90699264]
[1763572294985,0.1915,2935.9,2934.0,0.90699264]
[1763572295181,0.4725,2935.8,2934.1,0.6337]
[1763572295483,0.4725,2935.8,2934.2,0.4766]
[1763572296475,0.4725,2936.3,2934.2,0.4766]
[1763572296650,0.4725,2936.3,2934.4,0.90699264]
[1763572296849,0.4725,2936.3,2934.5,0.48915396]
[1763572297065,0.1915,2936.5,2934.5,0.96575396]
[1763572297283,0.664,2936.5,2934.6,0.4766]
[1763572297650,0.4725,2936.4,2934.6,0.4766]
[1763572297847,0.4725,2936.4,2934.7,0.3412]
[1763572298048,0.4725,2936.4,2934.6,0.4766]
[1763572298271,0.405504,2936.0,2934.1,0.1571]
[1763572298476,6.71656889,2935.6,2933.3,0.451]
[1763572298683,0.405504,2935.5,2933.3,0.451]
[1763572298946,0.4909,2935.5,2933.4,0.90699264]
[1763572299153,0.4909,2935.5,2933.6,0.405504]
[1763572299659,0.1912,2935.9,2933.8,0.405504]
[1763572299973,0.1935,2936.5,2934.0,0.405504]
[1763572299974,0.4909,2936.4,2934.0,0.405504]
[1763572300588,0.4909,2936.4,2934.2,0.405504]
[1763572300787,0.4909,2936.4,2934.4,0.90699264]
[1763572301002,0.405504,2936.3,2934.3,0.451]
[1763572301187,0.405504,2936.3,2934.3,1.35799264]
[1763572301373,0.4909,2936.4,2934.3,0.451]
[1763572301374,0.4909,2936.2,2934.3,0.451]
[1763572301573,0.4909,2936.2,2934.1,1.2404423]
[1763572301574,0.405504,2936.1,2934.1,0.33344966]
[1763572301885,0.405504,2935.5,2933.3,0.451]
[1763572302272,0.6821,2935.4,2933.3,1.35799264]
[1763572302671,0.6821,2935.4,2933.5,0.405504]
[1763572302874,0.6821,2935.4,2933.7,0.90699264]
[1763572303184,0.4909,2935.3,2933.7,0.90699264]
[1763572303389,0.4909,2935.3,2933.8,1.26855547]
[1763572304263,0.4909,2935.3,2933.8,0.451]
[1763572306816,0.4909,2935.3,2933.0,7.12307289]
[1763572306817,0.4909,2935.3,2933.3,0.451]
[1763572307103,0.4909,2935.3,2933.4,0.90699264]
[1763572307302,0.405504,2935.2,2933.3,0.451]
[1763572307505,0.405504,2935.3,2933.4,0.451]
[1763572307805,0.4909,2935.2,2933.4,0.451]
[1763572308789,0.4909,2935.2,2933.4,1.35799264]
[1763572309029,0.4909,2935.2,2933.5,0.47670347]
[1763572309196,0.4909,2935.2,2933.5,1.83469611]
[1763572309393,0.1912,2935.4,2933.5,1.83469611]
[1763572309702,0.1912,2935.4,2933.6,0.451]
[1763572309900,0.6821,2935.4,2933.6,0.451]
[1763572310120,0.6821,2935.4,2933.7,0.18346961]
[1763572310302,0.4909,2935.3,2933.7,0.18346961]
[1763572310501,0.4909,2935.3,2933.8,0.451]
[1763572312133,0.4909,2935.3,2933.9,0.90699264]
[1763572312633,0.1912,2935.7,2934.1,0.90699264]
[1763572312789,0.1912,2935.7,2934.2,1.12289926]
[1763572313333,0.4909,2935.6,2934.3,0.451]
[1763572314732,0.4909,2935.6,2934.2,0.67189926]
[1763572315525,0.4909,2935.6,2934.2,0.1571]
[1763572316110,0.405504,2935.5,2934.2,0.1571]
[1763572316509,0.4909,2935.4,2934.2,0.1571]
[1763572316728,0.002,2935.3,2934.2,0.1571]
[1763572317139,0.4909,2935.2,2934.0,0.1571]
[1763572317332,0.4909,2935.2,2933.9,0.001]
[1763572317530,0.1912,2934.0,2933.9,0.001]
[1763572317732,0.405504,2934.9,2933.9,0.001]
[1763572317930,0.1912,2934.1,2933.9,0.001]
[1763572318547,0.6821,2934.1,2933.9,0.001]
[1763572319240,0.4909,2934.0,2933.9,0.001]
[1763572319550,0.405504,2933.6,2933.0,0.001]
[1763572319752,0.405504,2933.4,2933.0,0.001]
[1763572319938,0.71735423,2933.4,2933.0,0.001]
[1763572320115,0.4909,2933.3,2933.0,0.001]
[1763572320312,0.405504,2933.2,2933.0,0.001]
[1763572320526,0.71735423,2933.2,2933.0,0.001]
[1763572320861,1.02958052,2933.2,2933.0,0.001]
[1763572321015,1.19660013,2933.7,2933.0,0.001]
[1763572321016,0.4909,2933.6,2933.0,0.001]
[1763572321216,0.71740275,2933.9,2933.0,0.001]
[1763572321410,1.52126105,2933.9,2933.0,0.001]
[1763572321615,0.4909,2933.8,2933.0,0.001]
[1763572322210,0.90919096,2934.1,2933.1,0.0986]
[1763572322412,0.1912,2934.1,2933.1,0.0986]
[1763572322652,0.6821,2934.1,2933.0,0.001]
[1763572322825,0.405504,2934.0,2933.0,0.001]
[1763572323028,0.405504,2933.8,2933.0,0.001]
[1763572323225,0.405504,2933.3,2933.0,0.001]
[1763572323464,0.405504,2933.3,2930.9,0.1571]
[1763572323465,0.405504,2932.7,2930.5,0.1627]
[1763572323667,0.1912,2932.8,2931.1,0.0032]
[1763572323668,0.18,2931.6,2931.1,0.0032]
[1763572324060,0.6709,2931.6,2931.1,0.0032]
[1763572324547,0.405504,2931.4,2927.8,1.92993131]
[1763572324751,6.71779972,2929.1,2927.2,0.1915]
[1763572324945,0.4909,2929.2,2927.2,7.47492767]
[1763572325157,1.19660013,2930.1,2927.2,7.47492767]
[1763572325158,0.6821,2929.1,2927.3,1.71332996]
[1763572325451,0.6821,2929.1,2927.3,0.451]
[1763572325664,0.4909,2929.0,2927.2,7.0239453]
[1763572325883,0.4909,2929.0,2927.4,0.451]
[1763572326186,0.4909,2929.0,2927.2,0.1915]
[1763572326187,0.405504,2928.7,2927.1,0.17425397]
[1763572326401,0.1771,2927.2,2927.1,0.17425397]
[1763572326750,0.668,2927.2,2924.9,0.1915]
[1763572326947,0.4909,2927.1,2924.9,0.1915]
[1763572327389,0.4909,2927.4,2925.8,0.451]
[1763572327598,0.405504,2927.4,2924.9,0.1915]
[1763572327807,0.4619,2927.3,2925.7,0.4702]
[1763572327955,6.71779972,2927.1,2925.2,0.4702]
[1763572328159,6.71779972,2927.1,2924.9,0.1915]
[1763572328160,1.12347397,2927.1,2924.9,0.1915]
[1763572328401,0.4619,2927.1,2925.7,0.4702]
[1763572328600,0.1912,2927.5,2925.7,0.4702]
[1763572328759,0.4619,2927.4,2926.1,0.4702]
[1763572328960,0.4619,2927.4,2924.9,0.1915]
[1763572328961,0.405504,2927.3,2924.9,0.1915]
[1763572329210,0.1716,2926.2,2924.9,0.1915]
[1763572329500,0.405504,2927.1,2924.9,0.6617]
[1763572329719,0.405504,2926.9,2924.9,0.6617]
[1763572330127,0.4619,2926.8,2925.0,0.4702]
[1763572330286,0.4619,2926.8,2924.8,0.1922]
[1763572330482,0.1709,2926.7,2924.8,0.1922]
[1763572330684,6.71779972,2927.2,2924.9,0.4702]
[1763572330886,1.17986997,2927.1,2925.0,0.43969203]
[1763572331124,0.4619,2927.1,2925.2,0.405504]
[1763572331426,6.71779972,2927.7,2925.1,0.4702]
[1763572331427,7.17969972,2927.0,2925.1,0.4702]
[1763572331584,6.71779972,2928.0,2925.3,0.405504]
[1763572331784,0.4619,2928.0,2925.3,0.405504]
[1763572332009,0.4619,2927.7,2925.5,0.405504]
[1763572332213,0.4619,2927.4,2925.4,0.4702]
[1763572332414,0.4619,2927.4,2925.5,0.03418219]
[1763572332598,0.4619,2927.4,2925.5,0.90699264]
[1763572332798,0.4619,2927.4,2925.6,1.29158447]
[1763572332999,0.4619,2928.4,2926.0,1.31249664]
[1763572333234,0.4619,2928.4,2926.2,0.405504]
[1763572333412,0.1919,2928.6,2926.5,1.31249664]
[1763572333585,0.4619,2929.4,2927.0,1.31249664]
[1763572333786,0.1546,2929.1,2927.1,0.35375416]
[1763572333987,0.1546,2929.1,2927.1,0.405504]
[1763572334186,0.1919,2929.5,2927.4,0.90699264]
[1763572334424,0.4619,2929.8,2927.6,0.90699264]
[1763572334625,0.4619,2929.8,2927.5,0.4702]
[1763572334836,6.71779972,2929.4,2926.9,0.4702]
[1763572334998,1.13367997,2929.3,2927.2,0.405504]
[1763572335198,0.4619,2929.8,2927.2,0.405504]
[1763572335435,0.4619,2929.8,2927.5,1.31249664]
[1763572335645,0.4619,2929.8,2927.7,0.405504]
[1763572335801,0.1919,2929.9,2928.0,1.31249664]
[1763572335997,0.1919,2929.9,2927.7,0.90699264]
[1763572336199,0.6538,2929.9,2928.0,0.90699264]
[1763572336427,7.37159972,2929.9,2927.8,0.4702]
[1763572336642,0.405504,2929.3,2927.2,0.4702]
[1763572336822,0.4619,2929.8,2927.3,0.405504]
[1763572336823,6.71779972,2929.7,2927.3,0.405504]
[1763572337136,0.4619,2929.7,2927.3,0.405504]
[1763572337339,0.4619,2929.6,2927.4,0.4702]
[1763572337537,0.405504,2929.5,2927.4,0.4702]
[1763572337844,0.4619,2929.6,2927.4,0.4702]
[1763572338205,0.4619,2929.6,2927.6,0.90699264]
[1763572338400,0.4619,2929.6,2927.8,0.405504]
[1763572338630,0.4619,2929.6,2927.7,0.90248765]
[1763572339028,0.4619,2929.6,2927.5,0.90699264]
[1763572339208,0.4619,2929.6,2927.8,0.4702]
[1763572339961,0.405504,2929.5,2927.8,0.4702]
[1763572340406,0.4619,2929.4,2927.8,0.4702]
[1763572341618,0.1919,2929.9,2927.8,0.4702]
[1763572341832,0.4619,2929.4,2927.9,0.90699264]
[1763572342147,0.4619,2929.4,2927.8,1.85648792]
[1763572342374,0.4619,2929.4,2927.7,0.1922]
[1763572342530,0.405504,2929.3,2927.4,0.4702]
[1763572342730,0.405504,2929.3,2926.6,3.41683246]
[1763572343066,0.405504,2929.3,2926.2,6.71779972]
[1763572343067,0.6165,2929.2,2927.0,0.6624]
[1763572343269,0.4619,2929.1,2927.1,0.4702]
[1763572343473,0.4619,2929.1,2927.1,0.96878839]
[1763572343959,0.1546,2929.2,2927.3,1.31249664]
[1763572344168,0.6165,2929.2,2927.4,0.4702]
[1763572344335,0.6165,2929.2,2927.4,1.37719264]
[1763572344533,0.4755,2929.1,2927.4,0.4702]
[1763572346070,0.405504,2928.8,2927.0,0.1922]
[1763572346270,0.405504,2928.8,2926.6,0.4897]
[1763572346483,0.405504,2928.3,2926.2,0.4897]
[1763572346845,0.4755,2928.2,2926.2,0.4897]
[1763572347490,0.405504,2927.8,2925.7,0.1922]
[1763572347693,3.587,2927.5,2926.0,0.4897]
[1763572347888,0.405504,2927.6,2925.5,0.1519]
[1763572348184,0.4755,2927.5,2925.6,0.4897]
[1763572348508,0.405504,2927.4,2925.6,0.4897]
[1763572348787,0.405504,2927.4,2925.5,0.1519]
[1763572348954,0.405504,2927.4,2925.2,0.4897]
[1763572348955,0.405504,2927.2,2925.2,0.1519]
[1763572349156,0.405504,2927.2,2925.0,0.001]
[1763572349157,0.405504,2927.0,2925.0,0.001]
[1763572349356,8.13496247,2926.8,2925.0,0.001]
[1763572349689,0.81349625,2926.7,2925.1,0.1519]
[1763572349851,0.1881,2926.9,2925.1,0.1519]
[1763572350185,0.4755,2926.8,2925.1,0.6416]
[1763572350347,0.1881,2926.9,2925.1,0.6416]
[1763572350547,0.4755,2927.9,2925.3,0.405504]
[1763572350748,8.13496247,2927.8,2925.3,0.405504]
[1763572350974,0.86104625,2927.7,2925.4,0.4897]
[1763572351147,1.33654625,2927.7,2925.4,0.4897]
[1763572351347,0.4755,2927.6,2925.4,0.4897]
[1763572352148,0.4755,2927.6,2925.5,0.405504]
[1763572352349,0.4755,2927.6,2925.7,0.405504]
[1763572352551,0.4755,2927.6,2925.8,0.9210285]
[1763572352778,0.4755,2927.6,2925.4,0.4897]
[1763572352955,1.18532505,2927.6,2925.4,0.4897]
[1763572353150,0.30901486,2927.5,2925.5,0.94117483]
[1763572353391,0.4755,2927.6,2925.5,0.90699264]
[1763572353618,0.1881,2928.1,2925.6,0.895204]
[1763572353914,0.4755,2928.6,2926.3,1.31249664]
[1763572354296,0.4755,2929.0,2927.0,1.31249664]
[1763572354499,0.4755,2929.0,2926.9,0.405504]
[1763572354673,0.4755,2929.0,2926.9,0.895204]
[1763572354674,0.78516193,2929.0,2926.9,0.895204]
[1763572354873,0.4755,2929.0,2926.9,0.895204]
[1763572355073,0.4755,2929.0,2927.1,0.405504]
[1763572355610,0.1546,2929.2,2927.3,1.31249664]
[1763572355985,0.4775,2929.4,2927.5,0.405504]
[1763572356310,0.002,2929.4,2928.0,0.90699264]
[1763572356614,0.002,2929.4,2928.1,0.895204]
[1763572356811,0.002,2929.4,2928.3,0.405504]
[1763572357107,0.002,2929.4,2929.3,0.1922]
[1763572357682,0.002,2929.4,2929.3,0.6819]
[1763572358676,0.002,2929.4,2929.3,4.50118886]
[1763572358896,0.002,2929.4,2929.3,1.99439664]
[1763572359109,0.002,2929.4,2929.3,5.60762116]
[1763572359509,0.002,2929.7,2929.5,0.405504]
[1763572359726,0.1881,2931.5,2929.5,0.405504]
[1763572359878,0.6539,2931.5,2929.7,0.405504]
[1763572360309,0.4658,2931.4,2929.9,0.405504]
[1763572360526,0.1979,2931.7,2929.9,1.31249664]
[1763572360675,0.1979,2931.7,2930.1,0.405504]
[1763572360875,0.4658,2931.6,2930.1,0.405504]
[1763572361159,0.4658,2931.6,2929.3,0.88023966]
[1763572361366,0.4658,2931.6,2929.4,0.405504]
[1763572361532,0.4658,2931.6,2929.4,0.894104]
[1763572361717,0.90699264,2931.5,2929.3,0.1922]
[1763572362067,0.90699264,2931.5,2928.9,0.4886]
[1763572362068,0.405504,2931.0,2929.0,0.1922]
[1763572362220,1.11803247,2931.0,2929.0,0.1922]
[1763572362554,1.4808445,2930.9,2929.0,0.1922]
[1763572362773,0.405504,2930.5,2927.5,8.13496247]
[1763572362919,0.405504,2930.5,2926.6,3.58587279]
[1763572362920,0.405504,2930.5,2927.4,0.4886]
[1763572362921,0.1979,2929.1,2927.4,0.4886]
[1763572363127,0.1979,2929.1,2927.6,0.1519]
[1763572363463,0.405504,2928.9,2927.2,0.1972]
[1763572363630,2.20994673,2928.9,2926.7,0.4886]
[1763572363830,3.15684948,2928.8,2926.7,0.4886]
[1763572364036,0.71252847,2928.7,2926.7,0.4886]
[1763572364259,1.17832847,2928.7,2926.7,0.4886]
[1763572364449,1.17832847,2928.7,2926.3,0.4886]
[1763572364450,0.871304,2928.6,2926.3,0.4886]
[1763572364645,0.871304,2928.6,2926.4,0.6405]
[1763572364864,0.71392826,2928.5,2926.4,0.6405]
[1763572365072,0.71392826,2928.5,2926.5,0.4886]
[1763572365274,0.4658,2928.4,2926.5,0.4886]
[1763572365475,0.4658,2928.4,2926.6,0.03416934]
[1763572365676,0.4658,2929.2,2926.8,0.405504]
[1763572365856,0.4658,2929.2,2927.2,1.31249664]
[1763572366058,0.4658,2929.2,2927.4,0.405504]
[1763572366270,0.4658,2929.0,2926.8,0.894104]
[1763572366475,0.4658,2929.0,2926.9,0.4886]
[1763572366785,0.405504,2928.9,2926.9,0.4886]
[1763572367162,0.4658,2928.8,2926.9,0.4886]
[1763572367359,0.4658,2928.8,2927.0,0.405504]
[1763572367559,0.4658,2928.8,2926.9,0.4886]
[1763572367560,0.4658,2928.8,2927.1,0.4886]
[1763572367745,0.4658,2928.8,2926.6,0.4886]
[1763572367951,0.4658,2928.8,2926.6,1.32678183]
[1763572368151,0.4658,2928.8,2926.6,0.4886]
[1763572368549,1.17598971,2928.8,2926.6,7.32246864]
[1763572368744,0.4658,2928.8,2926.7,1.31249664]
[1763572368986,0.1979,2929.1,2927.1,1.31249664]
[1763572369159,0.4658,2929.0,2927.1,1.31249664]
[1763572369347,0.4658,2929.0,2927.3,0.405504]
[1763572369548,0.1979,2929.1,2927.3,0.405504]
[1763572369870,0.6637,2929.1,2927.5,0.405504]
[1763572370275,0.1979,2929.1,2927.6,0.405504]
[1763572370473,0.1979,2929.1,2927.7,0.4886]
[1763572370793,0.1979,2929.1,2927.2,0.602704]
[1763572370794,0.4658,2929.0,2927.2,0.602704]
[1763572370966,0.4658,2929.0,2927.2,0.68039]
[1763572371165,0.4658,2929.0,2927.3,1.80109664]
[1763572371375,0.405504,2928.9,2926.7,0.4886]
[1763572371589,0.405504,2928.9,2926.0,0.1519]
[1763572371590,0.405504,2928.4,2926.1,0.4886]
[1763572371791,1.11640412,2928.4,2926.1,0.4886]
[1763572371949,0.4658,2928.3,2926.1,0.4886]
[1763572372291,0.4658,2928.3,2926.2,0.90699264]
[1763572372445,0.4658,2928.3,2926.0,3.56948653]
[1763572372650,0.4658,2928.3,2926.1,1.18731576]
[1763572372850,0.4658,2928.3,2926.1,2.0943084]
[1763572373092,0.4658,2928.3,2926.2,0.4886]
[1763572373474,0.4658,2928.3,2924.7,0.001]
[1763572373475,0.1735,2927.1,2924.7,0.001]
[1763572373648,0.1735,2927.1,2923.7,0.1918]
[1763572373649,0.1735,2927.1,2925.5,0.4886]
[1763572374687,0.1735,2927.1,2925.6,0.405504]
[1763572374911,0.4658,2927.8,2925.9,0.90699264]
[1763572375255,0.4658,2927.8,2926.0,0.4886]
[1763572375875,0.4658,2927.8,2926.1,0.557404]
[1763572376250,0.4658,2927.8,2926.2,0.4886]
[1763572376953,0.6393,2928.2,2926.3,0.90699264]
[1763572377153,0.6393,2928.2,2926.4,0.48129621]
[1763572377472,0.6393,2928.2,2926.1,0.1519]
[1763572377473,0.4658,2928.1,2926.1,0.1519]
[1763572377672,3.587,2928.0,2925.5,0.4886]
[1763572377877,0.70969896,2927.9,2925.5,0.4886]
[1763572378084,8.13496247,2927.8,2925.5,0.4886]
[1763572378407,0.81349625,2927.7,2925.5,0.4886]
[1763572378564,1.27929625,2927.7,2925.5,0.4886]
[1763572378770,0.4658,2927.6,2925.5,0.4886]
[1763572378950,0.4658,2927.6,2925.1,0.001]
[1763572379151,0.4658,2927.6,2925.4,0.4896]
[1763572379366,0.4658,2927.6,2925.4,0.3896]
[1763572379662,0.4658,2927.6,2925.1,0.406504]
[1763572379890,0.4658,2927.6,2925.1,0.001]
[1763572380086,1.17636101,2927.6,2925.1,0.001]
[1763572380284,0.19898573,2927.5,2925.1,0.001]
[1763572380490,8.13496247,2927.3,2925.1,0.001]
[1763572380712,8.13496247,2926.8,2925.1,0.001]
[1763572380875,0.1979,2925.2,2925.1,0.001]
[1763572381294,0.1979,2926.0,2925.1,0.001]
[1763572381810,0.4658,2925.9,2925.1,0.001]
[1763572383400,0.1979,2926.0,2925.1,0.0942]
[1763572383634,0.4658,2926.6,2925.2,0.4886]
[1763572383794,0.4658,2927.6,2925.4,0.405504]
[1763572384084,0.66478573,2927.5,2925.3,0.405504]
[1763572384413,0.4658,2927.5,2925.3,0.405504]
[1763572384584,0.4658,2927.4,2925.3,0.4886]
[1763572384790,0.4658,2927.4,2925.4,0.405504]
[1763572385022,0.1735,2928.2,2925.8,0.405504]
[1763572385023,0.4658,2928.1,2925.8,0.405504]
[1763572385179,0.4658,2928.1,2926.1,1.31249664]
[1763572385518,0.4658,2928.1,2926.2,0.6405]
[1763572385716,0.4658,2928.1,2926.3,0.4886]
[1763572386221,8.13496247,2927.9,2925.7,0.4886]
[1763572386610,0.4658,2927.8,2925.7,0.4886]
[1763572386917,0.4658,2927.8,2925.7,4.81357807]
[1763572387088,0.4658,2927.8,2925.8,1.37546181]
[1763572387424,0.4658,2927.8,2926.1,0.405504]
[1763572387714,0.1735,2928.2,2926.1,0.405504]
[1763572387923,0.1735,2928.2,2926.2,0.6086]
[1763572388220,0.1735,2928.2,2926.4,0.405504]
[1763572388681,0.1735,2928.2,2926.6,0.405504]
[1763572389011,0.1979,2928.5,2926.7,3.41681757]
[1763572389214,0.1979,2928.5,2926.8,1.78542806]
[1763572389417,0.4874,2928.8,2926.8,2.24212806]
[1763572389713,0.4874,2928.8,2927.0,0.405504]
[1763572390015,0.4874,2928.8,2927.1,0.4567]
[1763572390386,0.4874,2928.8,2926.6,0.4567]
[1763572390719,0.88144625,2928.7,2926.6,0.4567]
[1763572390919,0.88144625,2928.7,2926.2,0.557404]
[1763572390920,0.88144625,2928.7,2926.2,0.1519]
[1763572391166,0.88144625,2928.7,2925.1,0.5509]
[1763572391167,8.13496247,2927.9,2925.1,0.5509]
[1763572391414,0.1921,2926.3,2925.1,0.001]
[1763572391783,0.1921,2926.3,2925.1,0.4577]
[1763572391976,0.1921,2926.7,2925.1,1.36469264]
[1763572392215,1.38870013,2928.0,2925.4,0.405504]
[1763572392216,0.4874,2927.4,2925.4,0.405504]
[1763572392427,0.4874,2927.4,2925.2,1.84214035]
[1763572392701,0.4874,2927.4,2925.4,0.405504]
[1763572393082,0.4874,2927.4,2925.5,1.36369264]
[1763572393279,0.4874,2927.4,2925.5,3.87490288]
[1763572393485,0.4874,2927.4,2925.6,0.84419029]
[1763572393735,0.6474,2927.4,2925.6,0.4567]
[1763572394084,0.4874,2927.3,2925.4,0.4567]
[1763572394528,0.4874,2927.3,2925.5,0.405504]
[1763572394823,0.16,2927.4,2925.5,0.405504]
[1763572394979,0.16,2927.4,2925.7,0.405504]
[1763572395187,0.16,2927.4,2926.1,0.405504]
[1763572395412,0.16,2927.4,2925.9,0.90699264]
[1763572395610,0.16,2927.4,2926.0,0.4567]
[1763572395811,0.16,2927.4,2926.1,0.405504]
[1763572396322,0.16,2927.4,2926.2,0.4567]
[1763572396819,0.6474,2927.4,2925.7,0.4567]
[1763572397225,0.4874,2927.3,2925.7,0.4567]
[1763572397631,0.4874,2927.3,2925.7,1.36369264]
[1763572397929,0.4874,2927.3,2925.1,0.4577]
[1763572398129,0.4874,2927.3,2925.2,1.36369264]
[1763572398643,0.4874,2927.3,2925.4,0.405504]